Department Family,Entity,Date,Expense Type,Expense Area,Supplier,Transaction Number,Amount,VAT Registration Number
Department of Health,East Sussex Healthcare NHS Trust,02/09/2016,GENERAL RATES,Commercial,EASTBOURNE BOROUGH COUNCIL,0001442555,61889.00,
Department of Health,East Sussex Healthcare NHS Trust,02/09/2016,GENERAL RATES,Commercial,ROTHER DISTRICT COUNCIL,0001442557,88466.00,
Department of Health,East Sussex Healthcare NHS Trust,02/09/2016,NHS SUPPLY CHAIN CREDITORS,Cross Site,NHS SUPPLY CHAIN,0001442558,139894.79,
Department of Health,East Sussex Healthcare NHS Trust,08/09/2016,PURCHASING CARDS,Cross Site,LLOYDS TSB CORPORATE MARKETS,0001442563,30674.09,
Department of Health,East Sussex Healthcare NHS Trust,08/09/2016,NHS SUPPLY CHAIN CREDITORS,Cross Site,NHS SUPPLY CHAIN,0001442564,153954.29,
Department of Health,East Sussex Healthcare NHS Trust,13/09/2016,AGENCY DIRECT ENGAGEMENT,Other Central,LIAISON FINANCIAL SERVICES LTD,0001442566,31118.60,
Department of Health,East Sussex Healthcare NHS Trust,13/09/2016, PROVISIONS,Other Central,DEPARTMENT OF ENERGY & CLIMATE CHANGE,0001442567,135673.20,
Department of Health,East Sussex Healthcare NHS Trust,14/09/2016, PROVISIONS,Other Central,NHS BUSINESS SERVICES AUTHORITY,0000145955,49276.75,
Department of Health,East Sussex Healthcare NHS Trust,14/09/2016,STOCK-ASCRIBE CONQUEST,Pharmacy Stock,NOVARTIS PHARMACEUTICALS UK LTD,0001274948,32006.24,
Department of Health,East Sussex Healthcare NHS Trust,14/09/2016,ELECTRICITY,Commercial,EDF ENERGY,0001441720,73529.65,
Department of Health,East Sussex Healthcare NHS Trust,14/09/2016,CAPITAL EXPENDITURE,Other Central,STORAGE ASPECTS LTD,0001441789,45000.00,
Department of Health,East Sussex Healthcare NHS Trust,14/09/2016,CAPITAL EXPENDITURE,Other Central,H WILSON (ALFRISTON) LTD,0001441792,85445.12,
Department of Health,East Sussex Healthcare NHS Trust,14/09/2016,CAPITAL EXPENDITURE,Other Central,SCHNEIDER ELECTRIC,0001441806,50000.00,
Department of Health,East Sussex Healthcare NHS Trust,14/09/2016,CONTRACT-SCANNING SERVICE,Integrated Care,INHEALTH LIMITED,0001547056,143735.24,
Department of Health,East Sussex Healthcare NHS Trust,14/09/2016,CONTRACT-SCANNING SERVICE,Integrated Care,INHEALTH LIMITED,0001547146,156526.51,
Department of Health,East Sussex Healthcare NHS Trust,14/09/2016,H/CARE PURCH MEDICA,Integrated Care,MEDICA REPORTING LTD,0001547200,52768.00,
Department of Health,East Sussex Healthcare NHS Trust,14/09/2016,H/CARE PURCH MEDICA,Integrated Care,MEDICA REPORTING LTD,0001547201,42735.00,
Department of Health,East Sussex Healthcare NHS Trust,14/09/2016,PROFESSIONAL FEES,Corporate Services,THE PHOENIX PARTNERSHIP,0001547289,42895.56,
Department of Health,East Sussex Healthcare NHS Trust,14/09/2016,IT - DBA SERVICE,Corporate Services,INSIGHT DIRECT UK,0002175056,97860.00,
Department of Health,East Sussex Healthcare NHS Trust,14/09/2016,M&S EQUIPMENT - OTHER,Integrated Care,T B S GB,0002175143,101400.00,
Department of Health,East Sussex Healthcare NHS Trust,14/09/2016,MED EQUIPMENT LEASES,Integrated Care,T B S GB,0002175143,243360.00,
Department of Health,East Sussex Healthcare NHS Trust,14/09/2016,LAB MATERIALS - MAIN ANALYSER,Integrated Care,ORTHO-CLINICAL DIAGNOSTICS,0002257903,77622.90,
Department of Health,East Sussex Healthcare NHS Trust,14/09/2016,CAPITAL EXPENDITURE,Other Central,INSIGHT DIRECT UK,0002262411,66203.94,
Department of Health,East Sussex Healthcare NHS Trust,14/09/2016,CARDIOLOGY CATHETERS,Integrated Care,MEDTRONIC LTD,0002262881,145779.60,
Department of Health,East Sussex Healthcare NHS Trust,14/09/2016,STOCK-ASCRIBE CONQUEST,Pharmacy Stock,BAYER PLC,0002307060,62928.00,
Department of Health,East Sussex Healthcare NHS Trust,14/09/2016,STOCK-ASCRIBE EDGH,Pharmacy Stock,JANSSEN-CILAG LTD,0013046791,44150.40,
Department of Health,East Sussex Healthcare NHS Trust,14/09/2016,STOCK-ASCRIBE EDGH,Pharmacy Stock,JANSSEN-CILAG LTD,0013047108,40471.20,
Department of Health,East Sussex Healthcare NHS Trust,15/09/2016,NHSLA-CNST INSURANCE,Corporate Services,NHS LITIGATION AUTHORITY,0001442569,1328628.00,
Department of Health,East Sussex Healthcare NHS Trust,15/09/2016,OTHER INSURANCE NOT PROP/VHCL,Corporate Services,NHS LITIGATION AUTHORITY,0001442569,41053.00,
Department of Health,East Sussex Healthcare NHS Trust,15/09/2016,NHS SUPPLY CHAIN CREDITORS,Cross Site,NHS SUPPLY CHAIN,0001442571,165956.68,
Department of Health,East Sussex Healthcare NHS Trust,15/09/2016,AGENCY DIRECT ENGAGEMENT,Other Central,LIAISON FINANCIAL SERVICES LTD,0001442573,50952.07,
Department of Health,East Sussex Healthcare NHS Trust,21/09/2016,SLA WITH BSUH,Integrated Care,BRIGHTON AND SUSSEX UNIV HOSPS NHS TRUST,0000145935,137746.25,
Department of Health,East Sussex Healthcare NHS Trust,21/09/2016,SLA WITH MAIDSTONE & TWELLS,Integrated Care,MAIDSTONE & TUNBRIDGE WELLS NHS TRUST,0000146101,25217.08,
Department of Health,East Sussex Healthcare NHS Trust,21/09/2016,CARDIOLOGY CATHETERS,Integrated Care,MEDTRONIC LTD,0000629207,164538.00,
Department of Health,East Sussex Healthcare NHS Trust,21/09/2016,STOCK-ASCRIBE CONQUEST,Pharmacy Stock,ROCHE PRODUCTS LTD,0001275259,29788.80,
Department of Health,East Sussex Healthcare NHS Trust,21/09/2016,CONSULTANCY FEES,Corporate Services,COURSE FEES,0001442284,26545.00,
Department of Health,East Sussex Healthcare NHS Trust,21/09/2016,CONTINENCE PRODUCTS,Integrated Care,PAUL HARTMANN LTD,0001547212,36692.18,
Department of Health,East Sussex Healthcare NHS Trust,21/09/2016,STOCK-ASCRIBE EDGH,Pharmacy Stock,ROCHE PRODUCTS LTD,0013046490,36589.01,
Department of Health,East Sussex Healthcare NHS Trust,27/09/2016,AGENCY DIRECT ENGAGEMENT,Other Central,LIAISON FINANCIAL SERVICES LTD,0001442577,124771.04,
Department of Health,East Sussex Healthcare NHS Trust,28/09/2016,PACEMAKERS,Integrated Care,MEDTRONIC LTD,0002175173,99544.80,
Department of Health,East Sussex Healthcare NHS Trust,28/09/2016,CONTRACT-VEHICLE LEASING,Commercial,SEVEN ASSET LIMITED,0002262987,27119.00,
Department of Health,East Sussex Healthcare NHS Trust,28/09/2016,DRUGS-HIV,Integrated Care,ALCURA UK LTD,0002306226,53971.83,
Department of Health,East Sussex Healthcare NHS Trust,28/09/2016,AGENCY CONSULTANT,Integrated Care,TXM HEALTHCARE LTD,0020060397,28607.42,
